bitfinex/quotes_ETHUSD_20251108
["timestamp","ask_amount","ask_price","bid_price","bid_amount"]
[1762583812653,0.7426,3454.2,3454.1,0.144]
[1762583812850,0.7426,3454.2,3453.1,0.4949]
[1762583813054,0.4891,3454.1,3453.9,3.03926274]
[1762583813246,0.0049,3454.0,3453.9,3.03926274]
[1762583813647,0.4988,3454.0,3453.9,3.03926274]
[1762583814856,0.4988,3454.0,3453.9,0.144]
[1762583815152,0.4988,3454.0,3453.9,3.0392778]
[1762583815459,0.002,3454.2,3454.1,2.89511015]
[1762583815826,0.7426,3454.2,3454.0,2.89517013]
[1762583816027,0.4935,3454.2,3454.1,2.89511015]
[1762583816567,0.745,3454.2,3454.1,2.89511015]
[1762583816727,0.002,3454.2,3454.1,3.38611015]
[1762583817058,0.7449,3454.2,3454.1,3.03911015]
[1762583817425,0.49,3454.2,3454.1,3.03911015]
[1762583817628,0.7449,3454.2,3454.1,3.03911015]
[1762583818346,0.7449,3454.2,3454.1,0.144]
[1762583818559,0.7449,3454.2,3454.1,3.03911015]
[1762583818866,0.7449,3454.2,3453.8,2.89530162]
[1762583819039,0.4939,3454.1,3454.0,2.89512911]
[1762583819561,0.7483,3454.1,3454.0,2.89512911]
[1762583821873,0.7483,3454.1,3453.9,0.144]
[1762583822059,3.51075571,3454.0,3453.5,0.001]
[1762583822373,0.4583,3453.6,3453.5,2.89661314]
[1762583822576,0.613,3454.0,3453.5,2.89661314]
[1762583822577,0.469,3453.9,3453.8,2.89533376]
[1762583822740,0.6507,3453.9,3453.7,2.89537008]
[1762583822948,0.002,3454.2,3453.9,2.89519713]
[1762583823257,0.471,3454.2,3454.1,2.89511015]
[1762583823665,0.7585,3454.2,3454.1,2.89511015]
[1762583823880,0.2895,3454.2,3454.1,2.89511015]
[1762583824213,0.002,3454.2,3454.1,3.03911015]
[1762583824546,0.7583,3454.2,3454.1,0.144]
[1762583824980,0.7583,3454.2,3454.1,3.03911015]
[1762583826064,0.4535,3454.2,3454.1,3.03911015]
[1762583827002,0.7583,3454.2,3454.1,0.144]
[1762583827964,0.7583,3454.2,3453.8,2.89530853]
[1762583828170,0.1847,3453.9,3453.7,2.89543277]
[1762583828378,0.1817,3453.9,3453.7,2.89543114]
[1762583828557,0.2875,3453.8,3453.7,0.144]
[1762583828759,0.2875,3453.8,3453.7,3.03939081]
[1762583828958,0.2875,3453.8,3453.7,3.03944546]
[1762583828959,0.7546,3453.8,3453.7,3.03944546]
[1762583829437,0.2875,3453.8,3453.7,3.03944546]
[1762583830766,0.7546,3453.8,3453.7,3.03944546]
[1762583831895,0.7546,3453.8,3453.5,0.001]
[1762583832060,0.0047,3453.6,3453.5,0.001]
[1762583832498,0.4737,3453.6,3453.5,0.001]
[1762583833513,0.4737,3453.6,3453.5,2.89661314]
[1762583833514,0.0047,3453.6,3453.5,2.89661314]
[1762583833659,0.0047,3453.6,3453.5,2.92556927]
[1762583834008,0.0047,3453.6,3453.5,0.001]
[1762583834206,0.0047,3453.6,3453.5,2.89661314]
[1762583834405,0.1817,3453.9,3453.8,2.89536163]
[1762583834770,0.2875,3453.9,3453.8,2.89536163]
[1762583835290,0.2875,3453.9,3453.5,0.001]
[1762583835529,0.2875,3453.9,3453.8,2.89536163]
[1762583835921,0.002,3454.2,3454.1,2.89511015]
[1762583836131,0.002,3454.2,3454.1,3.39656125]
[1762583836335,0.002,3454.2,3454.1,3.36761015]
[1762583836564,0.002,3454.2,3454.1,3.82931015]
[1762583836718,0.002,3454.2,3454.1,3.85826125]
[1762583837118,0.002,3454.2,3454.1,3.82931015]
[1762583837352,0.002,3454.2,3454.1,3.85826125]
[1762583837874,0.002,3454.2,3454.1,3.82931015]
[1762583841757,0.002,3454.2,3454.1,3.97331015]
[1762583843091,0.002,3454.2,3454.1,5.08902215]
[1762583843296,0.002,3454.2,3454.1,1.0318584]
[1762583843613,0.002,3454.2,3453.8,0.001]
[1762583843614,0.729,3454.2,3453.8,0.001]
[1762583843760,0.2576,3453.9,3453.8,0.001]
[1762583844157,0.9083,3453.9,3453.8,0.001]
[1762583845798,3.8035778,3453.9,3453.8,0.001]
[1762583846093,0.9083,3453.9,3453.8,0.001]
[1762583846502,0.471,3454.2,3453.8,2.89636163]
[1762583846662,0.2601,3453.9,3453.8,2.89629756]
[1762583847484,0.002,3454.2,3454.0,2.89519397]
[1762583847682,0.727,3454.1,3453.8,0.001]
[1762583847885,0.1864,3453.9,3453.8,0.001]
[1762583848282,0.6554,3453.9,3453.8,0.001]
[1762583848822,3.5506778,3453.9,3453.8,0.001]
[1762583849119,0.6554,3453.9,3453.8,0.001]
[1762583849487,3.5506778,3453.9,3453.8,0.001]
[1762583849687,4.68528265,3453.9,3453.8,0.001]
[1762583849912,0.6554,3453.9,3453.8,0.001]
[1762583850109,0.002,3454.2,3453.8,0.4735]
[1762583850315,0.2601,3453.9,3453.8,0.001]
[1762583850620,0.2601,3453.9,3453.8,2.89636163]
[1762583851992,0.2601,3453.9,3453.8,0.001]
[1762583853530,0.002,3454.2,3454.1,2.89511015]
[1762583853697,0.002,3454.2,3454.1,3.36851015]
[1762583858438,0.002,3454.2,3454.1,3.84641015]
[1762583859041,0.002,3454.2,3454.1,3.57034015]
[1762583861344,0.002,3454.2,3454.1,3.09244015]
[1762583862169,0.005,3454.2,3454.1,3.09244015]
[1762583863465,0.005,3454.2,3454.1,3.23644015]
[1762583864330,0.005,3454.2,3454.1,3.70264015]
[1762583866473,0.005,3454.2,3454.1,4.47747225]
[1762583867124,1e-08,3454.2,3454.1,5.76613535]
[1762583867465,1e-08,3454.2,3454.1,4.99130325]
[1762583868243,1e-08,3454.2,3454.1,6.02192634]
[1762583868439,1e-08,3454.2,3454.1,5.99297524]
[1762583869390,1e-08,3454.2,3454.1,4.96235215]
[1762583869697,1e-08,3454.2,3454.1,6.53551009]
[1762583869849,1e-08,3454.2,3454.1,6.50655899]
[1762583871304,1e-08,3454.2,3454.1,5.36785615]
[1762583871467,1e-08,3454.9,3454.8,4.55973956]
[1762583871673,1e-08,3454.9,3454.8,4.64693556]
[1762583872001,1e-08,3454.9,3454.8,5.88275298]
[1762583873161,1e-08,3454.9,3454.8,5.11063556]
[1762583875792,0.00200001,3454.9,3454.8,5.11063556]
[1762583877871,0.00200001,3454.9,3454.8,4.64693556]
[1762583878216,0.00200001,3454.9,3454.8,5.11063556]
[1762583879272,0.00200001,3454.9,3454.8,8.67681821]
[1762583879611,0.00200001,3454.9,3454.8,3.38722356]
[1762583879809,0.24750001,3454.9,3454.8,2.89452356]
[1762583881489,0.24750001,3454.9,3454.8,3.03852356]
[1762583882098,0.93450001,3454.9,3454.8,3.03852356]
[1762583882501,0.93450001,3454.9,3454.8,3.52022356]
[1762583882502,0.00200001,3454.9,3454.8,3.52022356]
[1762583882701,0.00200001,3454.9,3454.8,3.97552356]
[1762583883291,0.00200001,3454.9,3454.8,3.52022356]
[1762583885318,0.00200001,3454.9,3454.8,5.26418079]
[1762583885489,0.00200001,3454.9,3454.8,5.23523556]
[1762583886818,0.00200001,3454.9,3454.8,6.00735298]
[1762583887113,0.00200001,3454.9,3454.8,6.52604781]
[1762583887321,0.00200001,3454.9,3454.8,6.67004781]
[1762583887520,0.00200001,3454.9,3454.8,5.64073956]
[1762583887821,0.00200001,3454.9,3454.8,5.66968479]
[1762583888034,1e-08,3455.3,3454.8,5.66968479]
[1762583888182,1e-08,3455.3,3455.2,5.71941009]
[1762583888584,1e-08,3455.3,3455.2,7.20392293]
[1762583888819,1e-08,3455.3,3455.2,5.40280046]
[1762583889018,1e-08,3455.3,3455.2,4.94750046]
[1762583889208,1e-08,3455.3,3455.2,6.43144038]
[1762583889717,1e-08,3455.3,3455.2,5.40280046]
[1762583890810,1e-08,3455.3,3455.2,4.94750046]
[1762583891132,1e-08,3455.3,3455.2,5.97574776]
[1762583891288,1e-08,3455.3,3455.2,6.43104776]
[1762583891721,1e-08,3455.3,3455.2,5.97574776]
[1762583892285,1e-08,3455.3,3455.2,6.43104776]
[1762583892894,1e-08,3455.3,3455.2,5.40280046]
[1762583894629,1e-08,3455.3,3455.2,4.94750046]
[1762583894810,0.73600001,3455.3,3455.2,3.03818846]
[1762583897409,0.24250001,3455.3,3455.2,3.03818846]
[1762583898019,0.73600001,3455.3,3455.2,0.144]
[1762583898342,0.73600001,3455.3,3455.2,3.03818846]
[1762583899851,0.73600001,3455.3,3455.2,0.144]
[1762583900210,0.73600001,3455.3,3455.2,3.03818846]
[1762583900518,0.73600001,3455.3,3454.8,0.77280453]
[1762583900725,0.6842,3454.9,3454.8,2.89552356]
[1762583900911,0.6842,3454.9,3454.8,0.001]
[1762583901111,0.9295,3454.9,3454.8,0.001]
[1762583901927,0.3566167,3455.8,3454.8,0.4827]
[1762583902122,0.8697732,3457.0,3456.6,0.6622]
[1762583902446,0.144,3458.4,3456.9,0.144]
[1762583902766,4.2836586,3458.9,3457.0,1.38844892]
[1762583902767,0.005,3458.9,3457.0,1.38844892]
[1762583902921,0.005,3458.9,3457.7,2.8920959]
[1762583903126,0.005,3458.9,3457.7,3.5089945]
[1762583903337,1.259712,3458.8,3457.7,3.5089945]
[1762583903645,0.005,3458.9,3457.7,3.5089945]
[1762583904070,2.89168646,3458.2,3457.3,2.89242795]
[1762583904235,1.259712,3458.8,3456.9,0.77155032]
[1762583904563,2.89142759,3458.5,3457.4,2.89227693]
[1762583904724,2.89186289,3458.0,3457.0,2.89260022]
[1762583904930,2.89186289,3458.0,3457.1,0.61563008]
[1762583905263,4.15155044,3458.1,3457.1,3.50821596]
[1762583905431,2.89187024,3458.0,3457.1,2.89258588]
[1762583905614,1.259712,3458.1,3456.9,2.89276491]
[1762583905615,1.259712,3458.1,3457.2,2.89249515]
[1762583905935,2.89184502,3458.0,3457.2,2.89249515]
[1762583906988,0.405504,3458.8,3457.2,2.89249515]
[1762583906989,0.405504,3458.8,3457.7,2.8920959]
[1762583907254,1.259712,3458.4,3457.6,2.89216241]
[1762583907563,1.259712,3458.5,3457.7,2.92101685]
[1762583907744,4.15115381,3458.5,3457.7,2.92101685]
[1762583907947,0.405504,3458.8,3457.7,2.8920959]
[1762583908150,2.89127894,3458.7,3457.7,2.8920959]
[1762583908370,1.259712,3458.6,3457.7,2.8920959]
[1762583908660,4.15108728,3458.6,3457.7,2.8920959]
[1762583909016,1.259712,3458.4,3457.7,2.8920959]
[1762583909218,2.89153463,3458.4,3457.7,2.8920959]
[1762583909415,0.005,3458.9,3457.0,2.89268151]
[1762583909646,0.005,3458.9,3456.8,1.64049971]
[1762583909647,1.259712,3458.6,3457.7,2.8920959]
[1762583910169,1.259712,3458.7,3457.7,2.8920959]
[1762583910332,0.005,3458.9,3457.7,2.8920959]
[1762583910648,1.71328279,3458.7,3457.7,2.8920959]
[1762583910888,4.60457134,3458.7,3457.7,2.8920959]
[1762583911286,2.89137359,3458.6,3457.7,2.8920959]
[1762583911478,1.259712,3458.6,3457.7,2.8920959]
[1762583911877,2.89135064,3458.6,3457.7,2.8920959]
[1762583912074,2.89142979,3458.5,3457.7,2.8920959]
[1762583912288,0.45357079,3458.7,3457.0,0.86890912]
[1762583912289,2.89177739,3458.1,3457.0,0.86890912]
[1762583912491,2.89177739,3458.1,3456.9,0.4661]
[1762583912492,1.259712,3458.1,3457.2,2.89251417]
[1762583912691,2.89693594,3457.9,3456.9,2.89275394]
[1762583912868,2.89693594,3457.9,3457.4,0.144]
[1762583913187,0.005,3457.9,3457.4,0.144]
[1762583913491,2.89218468,3457.6,3457.1,0.144]
[1762583913792,3.03609985,3457.7,3457.1,0.144]
[1762583913954,2.89227442,3457.5,3457.1,0.144]
[1762583914151,2.89234753,3457.4,3457.1,0.144]
[1762583914494,2.89234753,3457.4,3456.5,2.89308891]
[1762583914495,0.144,3457.4,3456.8,0.144]
[1762583914992,0.09135951,3457.8,3457.1,2.89257661]
[1762583915207,2.8922705,3457.5,3456.3,0.1936]
[1762583915514,2.8922098,3457.6,3456.7,2.89286706]
[1762583915651,2.8922098,3457.6,3456.9,2.89275314]
[1762583915852,2.8921238,3457.7,3456.9,2.89275314]
[1762583916088,1.259712,3457.5,3456.9,2.89275022]
[1762583916397,1.259712,3457.6,3457.0,2.89267746]
[1762583916598,2.89217984,3457.6,3457.0,2.89267746]
[1762583916953,2.89217984,3457.6,3456.7,2.89292448]
[1762583917209,2.89227363,3457.5,3456.9,2.89270533]
[1762583917496,2.89219557,3457.6,3456.8,2.89282129]
[1762583917794,2.8922784,3457.5,3456.8,2.89282129]
[1762583918092,1.259712,3457.6,3456.3,0.6597]
[1762583918397,3.29762534,3457.7,3456.4,0.61471989]
[1762583918700,1.259712,3457.6,3456.4,3.97396]
[1762583918887,2.89231797,3457.5,3456.5,3.50781453]
[1762583919054,2.89231797,3457.5,3456.8,2.89278889]
[1762583919252,0.405504,3457.7,3456.4,0.4661]
[1762583919594,0.405504,3457.7,3456.5,2.89302248]
[1762583919595,2.89241223,3457.4,3456.5,2.89302248]
[1762583919779,2.89249879,3457.3,3456.3,0.1936]
[1762583919966,2.89251832,3457.2,3456.0,0.4661]
[1762583920169,2.89259897,3457.1,3456.4,2.89316906]
[1762583920558,0.405504,3457.7,3456.0,0.4661]
[1762583920892,2.89259427,3457.2,3456.5,2.89309108]
[1762583921397,0.49686351,3457.8,3455.9,1.259712]
[1762583921398,0.09135951,3457.8,3455.9,1.259712]
[1762583921556,0.09135951,3457.8,3457.7,3.3653959]
[1762583921959,0.09135951,3457.8,3457.7,3.8314959]
[1762583923692,0.09135951,3457.8,3457.7,4.47443848]
[1762583923872,0.09135951,3457.8,3457.7,4.44551753]
[1762583924207,0.005,3458.9,3457.7,1.55342163]
[1762583924399,0.005,3458.9,3458.0,3.07851011]
[1762583924596,0.005,3458.9,3458.4,2.89150058]
[1762583924762,0.005,3458.9,3458.5,0.144]
[1762583924956,0.005,3458.9,3458.5,3.0354235]
[1762583925270,1.259712,3459.2,3458.5,2.8914235]
[1762583925475,0.45348468,3459.4,3458.2,2.89167007]
[1762583925476,0.45348468,3459.4,3458.2,2.89160269]
[1762583925679,0.45348468,3459.4,3458.8,0.144]
[1762583925680,1.259712,3459.3,3458.8,0.144]
[1762583926063,0.59748468,3459.4,3458.8,0.144]
[1762583926264,2.89075824,3459.3,3458.8,0.144]
[1762583926490,2.89087648,3459.2,3458.8,0.144]
[1762583926678,1.259712,3459.2,3458.8,0.144]
[1762583926878,2.89105424,3459.0,3458.8,0.144]
[1762583927689,2.89107231,3459.0,3458.2,2.89161092]
[1762583927966,3.03507231,3459.0,3458.4,0.144]
[1762583929401,0.144,3459.0,3458.4,0.144]
[1762583929804,0.005,3459.9,3458.1,0.1867]
[1762583930004,2.89111221,3458.9,3458.6,0.144]
[1762583930216,3.0348796,3459.2,3458.6,0.144]
[1762583930217,2.8910187,3459.0,3458.6,0.144]
[1762583930522,2.89098273,3459.1,3458.3,2.89152179]
[1762583930671,3.03500982,3459.0,3458.4,0.144]
[1762583930996,0.144,3459.0,3458.4,3.03549839]
[1762583931202,0.144,3459.2,3458.6,0.144]
[1762583931806,3.03486435,3459.2,3458.6,0.144]
[1762583931970,0.002,3459.0,3458.6,0.144]
[1762583933376,2.89115121,3458.9,3458.6,0.144]
[1762583933686,3.03515937,3458.9,3458.3,0.144]
[1762583933879,2.89125174,3458.8,3458.3,0.144]
[1762583934202,2.89126476,3458.7,3458.3,0.144]
[1762583934503,3.03510555,3458.9,3458.3,0.144]
[1762583934504,0.144,3458.9,3458.3,0.144]
[1762583934698,2.89131121,3458.7,3458.3,0.144]
[1762583935170,2.89123303,3458.8,3458.3,0.144]
[1762583935497,0.144,3458.9,3458.3,0.144]
[1762583935700,1.261712,3459.0,3457.8,0.144]
[1762583935701,0.405504,3458.7,3457.8,0.144]
[1762583935908,0.002,3459.0,3457.8,0.144]
[1762583935909,2.8916177,3458.3,3457.9,0.61596821]
[1762583936074,2.8916177,3458.3,3457.8,0.144]
[1762583936278,0.144,3458.4,3457.8,0.144]
[1762583936501,0.144,3458.4,3457.9,0.6449392]
[1762583936690,0.144,3458.7,3458.1,0.144]
[1762583936895,2.89134331,3458.6,3458.1,0.144]
[1762583937291,0.002,3459.0,3458.5,3.37275399]
[1762583937503,0.002,3459.0,3458.5,3.37281395]
[1762583937813,0.002,3459.0,3458.5,0.4814]
[1762583938127,0.002,3459.0,3458.3,2.89158783]
[1762583938434,0.002,3459.0,3458.5,2.89139672]
[1762583938631,0.002,3459.0,3458.4,2.89148069]
[1762583939035,0.002,3459.0,3458.3,2.89158834]
[1762583939326,0.002,3459.0,3458.1,0.1867]
[1762583939510,1.259712,3458.9,3458.1,0.6511]
[1762583939679,1.259712,3458.9,3458.3,2.89154173]
[1762583940114,2.89110682,3458.9,3458.3,2.89154173]
[1762583940323,2.89306841,3459.0,3458.3,2.89154173]
[1762583940610,2.89141445,3458.6,3457.9,2.89187228]
[1762583941028,2.89141445,3458.6,3458.0,2.89184196]
[1762583941324,2.89118304,3458.8,3458.1,2.89174167]
[1762583941529,1.667216,3459.0,3457.4,3.65964723]
[1762583941530,2.89168289,3458.2,3457.4,1.22907166]
[1762583941688,2.89176132,3458.2,3457.5,0.61601533]
[1762583941893,0.405504,3458.6,3457.5,0.61601533]
[1762583942123,2.89170107,3458.2,3457.5,3.50824773]
[1762583942322,2.89170107,3458.2,3457.5,2.8922324]
[1762583942530,2.89176988,3458.1,3457.5,2.8922537]
[1762583942824,2.89170225,3458.2,3457.5,2.8922537]
[1762583943017,1.259712,3458.3,3457.5,2.8922537]
[1762583943018,2.89179512,3458.1,3457.5,2.8922537]
[1762583943840,2.89179512,3458.1,3457.4,2.89233271]
[1762583943841,2.8917753,3458.1,3457.4,2.89233271]
[1762583943997,2.8917753,3458.1,3457.3,2.89234742]
[1762583944329,2.8917313,3458.2,3457.5,2.89225885]
[1762583944690,1.259712,3458.3,3457.3,3.35409764]
[1762583944691,2.89176304,3458.1,3457.3,3.35409764]
[1762583945131,0.405504,3458.3,3457.1,0.1986]
[1762583945404,1.6189942,3459.9,3457.1,0.005]
[1762583945405,2.89212536,3457.7,3457.1,0.005]
[1762583945834,0.405504,3458.0,3457.1,0.005]
[1762583946014,2.89232076,3457.5,3457.1,0.005]
[1762583946342,2.89149879,3458.5,3457.1,0.005]
[1762583946343,2.89225236,3457.6,3457.1,0.005]
[1762583946546,0.405504,3458.5,3457.1,0.005]
[1762583946547,1.665216,3458.0,3457.1,0.005]
[1762583946849,2.89247886,3457.3,3457.1,0.005]
[1762583947001,2.8924535,3457.3,3457.1,0.005]
[1762583947207,2.89251417,3457.2,3457.1,0.005]
[1762583947440,3.03636364,3457.4,3457.1,0.005]
[1762583947614,4.55773017,3457.2,3457.1,0.005]
[1762583950167,4.55773017,3457.2,3457.1,0.006]
[1762583950319,3.29826919,3456.9,3456.8,0.001]
[1762583950661,4.55798119,3456.9,3456.8,0.001]
[1762583951447,5.01179891,3456.9,3456.8,0.001]
[1762583956727,4.55798119,3456.9,3456.8,0.001]
[1762583964159,4.55831595,3456.5,3456.4,1e-08]
[1762583966977,11.06734099,3456.5,3456.4,1e-08]
[1762583967182,11.03831595,3456.5,3456.4,1e-08]
[1762583969177,11.39344473,3456.5,3456.4,1e-08]
[1762583970379,3.29885507,3456.2,3456.1,1e-08]
[1762583970581,11.03856707,3456.2,3456.1,1e-08]
[1762583974179,11.39369585,3456.2,3456.1,1e-08]
[1762583974380,15.06736872,3456.2,3456.1,1e-08]
[1762583975162,4.55856707,3456.2,3456.1,1e-08]
[1762583975363,8.58736872,3456.2,3456.1,1e-08]
[1762583975666,12.61617037,3456.2,3456.1,1e-08]
[1762583975865,8.58820611,3455.2,3455.1,0.006]
[1762583976266,8.58820611,3455.2,3455.1,0.4911]
[1762583976471,4.55940446,3455.2,3455.1,0.4911]
[1762583977394,4.55940446,3455.2,3455.1,0.006]
[1762583979087,4.55940446,3455.2,3455.1,0.4911]
[1762583980564,4.55940446,3455.2,3455.1,0.006]
[1762583980762,1.665216,3455.2,3455.1,0.6861]
[1762583980963,1.03913434,3457.2,3455.1,0.71244272]
[1762583981201,1.5639942,3457.5,3457.4,0.6801]
[1762583981202,2.89226547,3457.5,3457.4,0.6801]
[1762583981703,2.8924305,3457.3,3457.2,0.195]
[1762583982166,2.89259784,3457.1,3457.0,0.195]
[1762583982366,0.005,3457.9,3457.0,0.195]
[1762583982590,2.89239731,3457.4,3457.1,0.4636]
[1762583982791,2.89251417,3457.2,3457.1,0.4636]
[1762583983104,1.259712,3457.6,3457.1,0.4636]
[1762583983304,0.005,3457.9,3457.1,0.9544]
[1762583983599,1.259712,3457.4,3457.1,0.9544]
[1762583983801,2.8924305,3457.3,3457.2,0.4636]
[1762583984006,4.5576465,3457.3,3457.2,0.4636]
[1762583984200,4.5576465,3457.3,3457.2,0.9544]
[1762583984402,1.665216,3457.3,3457.2,0.9544]
[1762583984700,4.5576465,3457.3,3457.2,0.9544]
[1762583987830,1.665216,3457.3,3457.2,0.9544]
[1762583988045,1.259712,3457.3,3457.2,0.9544]
[1762583991445,4.1521425,3457.3,3457.2,0.9544]
[1762583992237,2.89282195,3456.9,3456.5,0.4636]
[1762583992440,3.03670288,3457.0,3456.3,0.6076]
[1762583992765,2.89270288,3457.0,3456.8,0.4908]
[1762583992962,2.89270288,3457.0,3456.9,0.4908]
[1762583993260,2.89252727,3457.2,3456.9,0.4908]
[1762583993261,3.29801879,3457.2,3456.9,0.4908]
[1762583993478,3.29801879,3457.2,3457.1,0.6782]
[1762583994260,3.29801817,3457.2,3457.1,0.6782]
[1762583994623,0.405504,3457.2,3457.1,0.6782]
[1762583994851,1.259712,3457.3,3457.1,0.6782]
[1762583994852,1.259712,3457.3,3457.1,1.1418]
[1762583995166,1.259712,3457.3,3457.2,0.9544]
[1762583995957,0.405504,3457.2,3456.1,0.4636]
[1762583996158,2.8931534,3456.5,3456.2,0.6586]
[1762583996535,2.8931534,3456.5,3456.4,0.4908]
[1762583997037,0.405504,3457.3,3456.4,0.9544]
[1762583997274,2.89293256,3456.7,3456.6,0.4908]
[1762583998153,3.29843656,3456.7,3456.6,0.4908]
[1762583998965,0.405504,3456.7,3456.4,0.4636]
[1762583999389,0.405504,3456.7,3456.6,0.4908]
[1762583999768,0.405504,3456.7,3456.6,0.9544]
[1762584000154,1.259712,3457.3,3456.6,0.9544]
[1762584000458,1.259712,3456.9,3456.7,0.4636]
[1762584000662,2.8925214,3457.2,3456.7,0.4636]
[1762584000663,2.89262282,3457.1,3456.7,0.4636]
[1762584000854,1.665216,3457.0,3456.7,0.4636]
[1762584001255,1.259712,3457.2,3456.9,0.4807]
[1762584001455,1.259712,3457.2,3456.7,0.4636]
[1762584001670,1.259712,3457.2,3457.1,0.667]
[1762584001863,1.259712,3457.2,3457.1,1.1264]
[1762584002075,9.3723569,3457.4,3457.1,1.1264]
[1762584002076,4.15214785,3457.3,3457.1,1.1264]
[1762584002256,4.15214785,3457.3,3457.2,0.4594]
[1762584002470,4.15214785,3457.3,3457.2,0.9401]
[1762584002676,4.15214785,3457.3,3457.1,0.1863]
[1762584002677,2.89251417,3457.2,3457.1,0.1863]
[1762584002878,2.89265273,3457.1,3456.9,0.4594]
[1762584003391,4.15236473,3457.1,3457.0,0.4807]
[1762584003898,1.259712,3457.1,3456.6,0.4594]
[1762584004080,3.2982377,3457.0,3456.3,0.4604]
[1762584004281,2.89268421,3457.0,3456.3,3.35364994]
[1762584004472,2.89268421,3457.0,3456.9,0.4807]
[1762584005020,2.89263044,3457.1,3456.9,0.9401]
[1762584005189,2.89263044,3457.1,3457.0,0.4807]
[1762584006783,2.89263044,3457.1,3457.0,0.9401]
[1762584006981,4.15421085,3457.3,3457.0,0.9401]
[1762584007200,4.1541425,3457.3,3457.2,0.667]
[1762584007615,4.1541425,3457.3,3457.2,1.1264]
[1762584007999,4.1541425,3457.3,3456.5,2.89309679]
[1762584008000,2.89281851,3456.9,3456.8,0.4594]
[1762584008392,0.144,3456.8,3456.3,0.4604]
[1762584008591,0.144,3456.6,3456.3,0.4604]
[1762584009125,3.03701625,3456.6,3456.5,0.4807]
[1762584009326,0.144,3456.6,3456.5,0.4807]
[1762584009512,0.144,3456.6,3456.5,0.9401]
[1762584010226,2.89316516,3456.5,3456.3,0.001]
[1762584010638,0.144,3456.6,3456.4,0.4807]
[1762584010839,0.144,3456.6,3456.5,0.4807]
[1762584010990,3.03701625,3456.6,3456.5,0.4807]
[1762584012030,0.144,3456.6,3456.5,0.4807]
[1762584012194,3.03701625,3456.6,3456.5,0.4807]
[1762584012616,0.144,3456.6,3456.5,0.4807]
[1762584012815,0.144,3456.6,3456.5,0.9401]
[1762584014047,3.03701625,3456.6,3456.5,0.4807]
[1762584014246,0.144,3456.6,3456.5,0.4807]
[1762584014548,0.144,3456.6,3456.5,0.9401]
[1762584015353,2.89318365,3456.4,3456.3,0.001]
[1762584015524,4.58742469,3456.4,3456.3,0.001]
[1762584015940,4.55839965,3456.4,3456.3,0.001]
[1762584020225,4.15289565,3456.4,3456.3,0.001]
[1762584020761,4.55839965,3456.4,3456.3,0.001]
[1762584023524,0.405504,3456.4,3456.3,0.9411]
[1762584023735,6.48,3456.5,3456.3,0.9411]
[1762584023940,7.739712,3456.5,3456.4,0.9401]
[1762584024140,10.63281195,3456.5,3456.4,0.9401]
[1762584024872,7.739712,3456.5,3456.4,0.9401]
[1762584025232,10.63281195,3456.5,3456.4,0.9401]
[1762584026161,4.15289565,3456.4,3456.3,0.001]
[1762584026363,4.32592069,3456.4,3456.3,0.001]
[1762584026666,4.29689565,3456.4,3456.3,0.001]
[1762584026960,4.29689565,3456.4,3456.3,0.4817]
[1762584029363,4.29689565,3456.4,3456.3,0.9411]
[1762584030883,1.403712,3456.4,3456.3,0.9411]
[1762584032264,0.144,3456.4,3456.3,0.9411]
[1762584035084,3.03718365,3456.4,3456.3,0.001]
[1762584035394,0.144,3456.4,3456.3,0.4953]
[1762584035591,0.144,3456.4,3456.3,0.9684]
[1762584036300,3.03718365,3456.4,3456.3,0.9684]
[1762584036659,4.15289565,3456.4,3456.3,0.001]
[1762584036860,4.55839965,3456.4,3456.3,0.001]
[1762584037098,1.665216,3456.4,3456.3,0.4953]
[1762584037285,4.55839965,3456.4,3456.3,0.001]
[1762584039356,4.15289565,3456.4,3456.3,0.001]
[1762584039674,4.15289565,3456.4,3456.3,0.4953]
[1762584040269,4.15489565,3456.4,3456.3,0.4953]
[1762584040492,4.15489565,3456.4,3456.3,0.001]
[1762584040880,4.15489565,3456.4,3456.3,0.4953]
[1762584041089,0.002,3456.4,3456.3,0.9684]
[1762584042006,2.89518365,3456.4,3456.3,0.9684]
[1762584042212,2.89518365,3456.4,3456.3,0.001]
[1762584042691,3.34902114,3456.4,3456.3,0.001]
[1762584042855,4.60873314,3456.4,3456.3,0.001]
[1762584043294,4.60873314,3456.4,3456.3,0.4946]
[1762584043859,4.63775818,3456.4,3456.3,0.001]
[1762584044104,4.60873314,3456.4,3456.3,0.4946]
[1762584044393,4.60873314,3456.4,3456.3,0.001]
[1762584045785,4.15489565,3456.4,3456.3,0.001]
[1762584048577,4.64539565,3456.4,3456.3,0.001]
[1762584048777,5.09926003,3456.4,3456.3,0.001]
[1762584048977,4.60876003,3456.4,3456.3,0.9851]
[1762584049497,1.71557638,3456.4,3456.3,0.9851]
[1762584050294,4.60876003,3456.4,3456.3,0.9851]
[1762584052769,4.15489565,3456.4,3456.3,0.9851]
[1762584053999,1.261712,3456.4,3456.3,0.9851]
[1762584054482,0.002,3456.4,3456.3,0.9851]
[1762584055979,2.89518365,3456.4,3456.3,0.9851]
[1762584056383,0.002,3456.4,3456.3,0.9851]
[1762584057706,2.89518365,3456.4,3456.3,0.9851]
[1762584058296,0.002,3456.4,3456.3,0.9851]
[1762584059216,2.89518365,3456.4,3456.3,0.4946]
[1762584059519,2.89518365,3456.4,3456.3,0.9851]
[1762584060718,2.89518365,3456.4,3456.3,0.001]
[1762584060881,0.002,3456.4,3456.3,0.001]
[1762584061082,0.002,3456.4,3456.3,0.9667]
[1762584061304,2.89518365,3456.4,3456.3,0.9667]
[1762584061903,2.89518365,3456.4,3456.3,0.001]
[1762584062605,3.38208365,3456.4,3456.3,0.001]
[1762584064724,0.4889,3456.4,3456.3,0.9667]
[1762584064937,0.002,3456.8,3456.3,4.26547136]
[1762584065159,0.002,3456.8,3456.7,0.884304]